[Event "21th Rochefort Chess Festival - Masters"]
[Site "Rochefort, France"]
[Date "2023.02.14"]
[Round "5.5"]
[White "Sorensen, Hampus"]
[Black "Hutois, Mickael"]
[Result "1-0"]
[TimeControl "1h30 + [30'']"]
[WhiteElo "2445"]
[BlackElo "2285"]

1. d4 {[%clk 01:30:19]} {[%emt 00:00:40]} Nf6 {[%clk 01:30:55]} {[%emt
00:00:06]} 2. c4 {[%clk 01:30:22]} {[%emt 00:00:27]} e6 {[%clk 01:31:20]}
{[%emt 00:00:05]} 3. Nf3 {[%clk 01:30:38]} {[%emt 00:00:13]} b6 {[%clk
01:31:44]} {[%emt 00:00:07]} 4. a3 {[%clk 01:30:20]} {[%emt 00:00:48]} Bb7
{[%clk 01:32:08]} {[%emt 00:00:06]} 5. Bf4 {[%clk 01:30:00]} {[%emt 00:00:50]}
d5 {[%clk 01:31:57]} {[%emt 00:00:41]} 6. cxd5 {[%clk 01:30:03]} {[%emt
00:00:27]} Nxd5 {[%clk 01:27:42]} {[%emt 00:04:45]} 7. Bg3 {[%clk 01:29:59]}
{[%emt 00:00:34]} c5 {[%clk 01:21:08]} {[%emt 00:07:04]} 8. e4 {[%clk
01:27:36]} {[%emt 00:02:53]} Nf6 {[%clk 01:20:58]} {[%emt 00:00:39]} 9. Bb5+
{[%clk 01:25:50]} {[%emt 00:02:17]} Nbd7 {[%clk 01:17:26]} {[%emt 00:04:02]} 10.
d5 {[%clk 01:23:40]} {[%emt 00:02:41]} exd5 {[%clk 01:10:54]} {[%emt 00:07:01]}
11. exd5 {[%clk 01:20:31]} {[%emt 00:03:40]} Qe7+ {[%clk 01:09:40]} {[%emt
00:01:44]} 12. Kf1 {[%clk 00:59:00]} {[%emt 00:22:00]} Ne4 {[%clk 00:56:31]}
{[%emt 00:13:39]} 13. Nc3 {[%clk 00:56:05]} {[%emt 00:03:26]} Nxg3+ {[%clk
00:52:58]} {[%emt 00:04:03]} 14. hxg3 {[%clk 00:56:32]} {[%emt 00:00:03]} a6
{[%clk 00:49:18]} {[%emt 00:04:10]} 15. Qd3 {[%clk 00:48:48]} {[%emt 00:08:13]}
Qd6 {[%clk 00:49:05]} {[%emt 00:00:42]} 16. Re1+ {[%clk 00:42:15]} {[%emt
00:07:03]} Kd8 {[%clk 00:46:12]} {[%emt 00:03:24]} 17. Bxd7 {[%clk 00:41:03]}
{[%emt 00:01:43]} Qxd7 {[%clk 00:45:30]} {[%emt 00:01:11]} 18. Ne5 {[%clk
00:41:02]} {[%emt 00:00:31]} Qc7 {[%clk 00:44:58]} {[%emt 00:01:03]} 19. d6
{[%clk 00:38:55]} {[%emt 00:02:36]} 1-0

[Event "21th Rochefort Chess Festival - Masters"]
[Site "Rochefort, France"]
[Date "2023.02.14"]
[Round "5.3"]
[White "Larkin, Vladyslav"]
[Black "Sochacki, Christophe"]
[Result "1-0"]
[TimeControl "1h30 + [30'']"]
[WhiteElo "2441"]
[BlackElo "2444"]

1. c4 {[%clk 01:26:55]} {[%emt 00:04:04]} c6 {[%clk 01:13:21]} {[%emt
00:17:39]} 2. Nf3 {[%clk 01:24:05]} {[%emt 00:03:20]} d5 {[%clk 01:13:38]}
{[%emt 00:00:13]} 3. e3 {[%clk 01:24:27]} {[%emt 00:00:09]} Nf6 {[%clk
01:13:26]} {[%emt 00:00:41]} 4. Nc3 {[%clk 01:24:27]} {[%emt 00:00:30]} e6
{[%clk 01:11:14]} {[%emt 00:02:42]} 5. b3 {[%clk 01:24:46]} {[%emt 00:00:11]}
Nbd7 {[%clk 01:11:34]} {[%emt 00:00:10]} 6. Bb2 {[%clk 01:25:11]} {[%emt
00:00:06]} Bd6 {[%clk 01:11:35]} {[%emt 00:00:28]} 7. Qc2 {[%clk 01:25:12]}
{[%emt 00:00:30]} O-O {[%clk 01:10:15]} {[%emt 00:01:49]} 8. Be2 {[%clk
01:18:36]} {[%emt 00:07:06]} Qe7 {[%clk 01:04:33]} {[%emt 00:06:12]} 9. g4
{[%clk 01:11:50]} {[%emt 00:07:17]} Nxg4 {[%clk 00:58:57]} {[%emt 00:06:06]} 10.
Rg1 {[%clk 01:12:12]} {[%emt 00:00:08]} f5 {[%clk 00:59:12]} {[%emt 00:00:15]}
11. cxd5 {[%clk 01:04:26]} {[%emt 00:08:16]} cxd5 {[%clk 00:51:39]} {[%emt
00:08:03]} 12. Nb5 {[%clk 01:04:06]} {[%emt 00:00:50]} Ndf6 {[%clk 00:37:07]}
{[%emt 00:15:01]} 13. Nxd6 {[%clk 00:59:02]} {[%emt 00:05:34]} Qxd6 {[%clk
00:37:36]} {[%emt 00:00:02]} 14. h3 {[%clk 00:59:24]} {[%emt 00:00:09]} Nh6
{[%clk 00:38:03]} {[%emt 00:00:03]} 15. Rc1 {[%clk 00:55:28]} {[%emt 00:04:26]}
Kh8 {[%clk 00:36:12]} {[%emt 00:02:19]} 16. Bd4 {[%clk 00:46:38]} {[%emt
00:09:21]} b6 {[%clk 00:35:10]} {[%emt 00:01:32]} 17. Qb2 {[%clk 00:40:19]}
{[%emt 00:06:49]} Qd8 {[%clk 00:24:56]} {[%emt 00:10:44]} 18. Ng5 {[%clk
00:28:43]} {[%emt 00:12:06]} Bd7 {[%clk 00:24:20]} {[%emt 00:01:05]} 19. Ba6
{[%clk 00:27:21]} {[%emt 00:01:53]} Nf7 {[%clk 00:23:51]} {[%emt 00:00:59]} 20.
h4 {[%clk 00:11:52]} {[%emt 00:15:59]} h6 {[%clk 00:21:38]} {[%emt 00:02:43]}
21. Nh3 {[%clk 00:09:48]} {[%emt 00:02:34]} Kh7 {[%clk 00:16:41]} {[%emt
00:05:27]} 22. Nf4 {[%clk 00:09:45]} {[%emt 00:00:34]} Rg8 {[%clk 00:13:30]}
{[%emt 00:03:41]} 23. Ke2 {[%clk 00:05:19]} {[%emt 00:04:56]} Ne4 {[%clk
00:12:52]} {[%emt 00:01:08]} 24. d3 {[%clk 00:03:51]} {[%emt 00:01:58]} Nc5
{[%clk 00:13:20]} {[%emt 00:00:01]} 25. Bxc5 {[%clk 00:03:25]} {[%emt
00:00:57]} bxc5 {[%clk 00:13:49]} {[%emt 00:00:01]} 26. Rxc5 {[%clk 00:03:49]}
{[%emt 00:00:06]} Qxh4 {[%clk 00:12:44]} {[%emt 00:01:35]} 27. Rcc1 {[%clk
00:03:57]} {[%emt 00:00:22]} e5 {[%clk 00:11:52]} {[%emt 00:01:22]} 28. Nxd5
{[%clk 00:03:42]} {[%emt 00:00:44]} f4 {[%clk 00:12:10]} {[%emt 00:00:12]} 29.
Rc7 {[%clk 00:01:33]} {[%emt 00:02:40]} Rad8 {[%clk 00:12:17]} {[%emt
00:00:22]} 30. Bc4 {[%clk 00:01:19]} {[%emt 00:00:44]} Ng5 {[%clk 00:10:06]}
{[%emt 00:02:42]} 31. Kd1 {[%clk 00:00:44]} {[%emt 00:01:05]} Nf3 {[%clk
00:10:01]} {[%emt 00:00:34]} 32. Rf1 {[%clk 00:00:49]} {[%emt 00:00:25]} Bh3
{[%clk 00:10:05]} {[%emt 00:00:26]} 33. Rh1 {[%clk 00:00:58]} {[%emt 00:00:20]}
Rgf8 {[%clk 00:09:45]} {[%emt 00:00:50]} 34. Kc1 {[%clk 00:01:06]} {[%emt
00:00:22]} fxe3 {[%clk 00:09:04]} {[%emt 00:01:11]} 35. fxe3 {[%clk 00:01:22]}
{[%emt 00:00:14]} Qg3 {[%clk 00:08:47]} {[%emt 00:00:47]} 36. Kb1 {[%clk
00:01:22]} {[%emt 00:00:31]} Ng1 {[%clk 00:06:05]} {[%emt 00:03:12]} 37. Qc3
{[%clk 00:00:37]} {[%emt 00:01:15]} Rf1+ {[%clk 00:04:47]} {[%emt 00:01:48]} 38.
Kb2 {[%clk 00:01:00]} {[%emt 00:00:07]} Bg2 {[%clk 00:03:44]} {[%emt 00:01:33]}
39. Rxg1 {[%clk 00:00:59]} {[%emt 00:00:32]} Rxg1 {[%clk 00:03:56]} {[%emt
00:00:18]} 40. Nf6+ {[%clk 00:01:05]} {[%emt 00:00:24]} Kh8 {[%clk 00:04:18]}
{[%emt 00:00:07]} 41. Nd7 {[%clk 00:29:29]} {[%emt 00:02:06]} Re8 {[%clk
00:31:55]} {[%emt 00:02:52]} 42. Be6 {[%clk 00:28:52]} {[%emt 00:01:06]} Bh3
{[%clk 00:30:10]} {[%emt 00:02:15]} 43. Rc8 {[%clk 00:28:07]} {[%emt 00:01:17]}
Qg6 {[%clk 00:23:12]} {[%emt 00:07:28]} 44. Bxh3 {[%clk 00:27:11]} {[%emt
00:01:26]} Rh1 {[%clk 00:23:07]} {[%emt 00:00:34]} 45. Rxe8+ {[%clk 00:19:05]}
{[%emt 00:08:37]} Qxe8 {[%clk 00:23:35]} {[%emt 00:00:02]} 46. Bf5 {[%clk
00:19:13]} {[%emt 00:00:22]} g6 {[%clk 00:19:49]} {[%emt 00:04:16]} 47. Nxe5
{[%clk 00:17:43]} {[%emt 00:02:00]} 1-0

[Event "21th Rochefort Chess Festival - Masters"]
[Site "Rochefort, France"]
[Date "2023.02.14"]
[Round "5.2"]
[White "Ghazarian, Kirk"]
[Black "Sasikiran, Krishnan"]
[Result "1/2-1/2"]
[TimeControl "1h30 + [30'']"]
[WhiteElo "2471"]
[BlackElo "2619"]

1. d4 {[%clk 01:30:53]} {[%emt 00:00:06]} Nf6 {[%clk 01:30:32]} {[%emt
00:00:26]} 2. c4 {[%clk 01:31:01]} {[%emt 00:00:24]} e6 {[%clk 01:30:53]}
{[%emt 00:00:10]} 3. g3 {[%clk 01:30:38]} {[%emt 00:00:53]} Bb4+ {[%clk
01:30:59]} {[%emt 00:00:24]} 4. Bd2 {[%clk 01:30:57]} {[%emt 00:00:10]} Be7
{[%clk 01:30:54]} {[%emt 00:00:35]} 5. Bg2 {[%clk 01:31:14]} {[%emt 00:00:13]}
d5 {[%clk 01:31:08]} {[%emt 00:00:17]} 6. Nf3 {[%clk 01:31:33]} {[%emt
00:00:10]} O-O {[%clk 01:31:16]} {[%emt 00:00:23]} 7. O-O {[%clk 01:31:56]}
{[%emt 00:00:06]} c6 {[%clk 01:30:39]} {[%emt 00:01:08]} 8. Qc2 {[%clk
01:30:41]} {[%emt 00:01:45]} Nbd7 {[%clk 01:30:44]} {[%emt 00:00:25]} 9. Rd1
{[%clk 01:30:33]} {[%emt 00:00:39]} b6 {[%clk 01:28:35]} {[%emt 00:02:38]} 10.
Bc3 {[%clk 01:29:14]} {[%emt 00:01:50]} Ne4 {[%clk 01:20:27]} {[%emt 00:08:39]}
11. Ne5 {[%clk 01:27:20]} {[%emt 00:02:23]} Nxe5 {[%clk 01:14:53]} {[%emt
00:06:04]} 12. Bxe4 {[%clk 01:27:43]} {[%emt 00:00:08]} Ng6 {[%clk 01:12:10]}
{[%emt 00:03:12]} 13. Bg2 {[%clk 01:27:18]} {[%emt 00:00:54]} f5 {[%clk
01:06:10]} {[%emt 00:06:30]} 14. Nd2 {[%clk 01:25:59]} {[%emt 00:01:50]} a5
{[%clk 01:04:45]} {[%emt 00:01:55]} 15. Rab1 {[%clk 01:10:46]} {[%emt
00:15:42]} Bd7 {[%clk 00:53:50]} {[%emt 00:11:25]} 16. a4 {[%clk 00:59:00]}
{[%emt 00:12:17]} Rc8 {[%clk 00:46:13]} {[%emt 00:08:07]} 17. e3 {[%clk
00:48:02]} {[%emt 00:11:28]} b5 {[%clk 00:39:57]} {[%emt 00:06:45]} 18. b3
{[%clk 00:46:31]} {[%emt 00:02:01]} b4 {[%clk 00:29:44]} {[%emt 00:10:43]} 19.
Bb2 {[%clk 00:46:46]} {[%emt 00:00:15]} h5 {[%clk 00:28:42]} {[%emt 00:01:31]}
20. f4 {[%clk 00:35:21]} {[%emt 00:11:55]} 1/2-1/2



[ePGN "0.1;DGT LiveChess/2.2.5"]

[Event "21th Rochefort Chess Festival - Masters"]
[Site "Rochefort, France"]
[Date "2023.02.14"]
[Round "6.1"]
[White "Ghazarian, Kirk"]
[Black "Ghosh, Diptayan"]
[Result "1/2-1/2"]
[TimeControl "1h30 + [30'']"]
[WhiteElo "2471"]
[BlackElo "2553"]

1. d4 {[%clk 01:30:54]} {[%emt 00:00:06]} d5 {[%clk 01:24:30]} {[%emt
00:06:30]} 2. c4 {[%clk 01:31:07]} {[%emt 00:00:18]} c6 {[%clk 01:24:53]}
{[%emt 00:00:07]} 3. Nf3 {[%clk 01:31:30]} {[%emt 00:00:07]} Nf6 {[%clk
01:25:19]} {[%emt 00:00:04]} 4. Nc3 {[%clk 01:31:48]} {[%emt 00:00:12]} dxc4
{[%clk 01:25:44]} {[%emt 00:00:05]} 5. a4 {[%clk 01:32:09]} {[%emt 00:00:09]}
Bf5 {[%clk 01:26:05]} {[%emt 00:00:09]} 6. Ne5 {[%clk 01:31:34]} {[%emt
00:01:05]} Nbd7 {[%clk 01:26:23]} {[%emt 00:00:12]} 7. Nxc4 {[%clk 01:31:46]}
{[%emt 00:00:18]} Nb6 {[%clk 01:26:36]} {[%emt 00:00:18]} 8. Ne5 {[%clk
01:31:59]} {[%emt 00:00:16]} a5 {[%clk 01:26:53]} {[%emt 00:00:13]} 9. h4
{[%clk 01:30:52]} {[%emt 00:01:36]} h6 {[%clk 01:26:25]} {[%emt 00:00:59]} 10.
f3 {[%clk 01:30:46]} {[%emt 00:00:36]} e6 {[%clk 01:26:51]} {[%emt 00:00:04]}
11. e4 {[%clk 01:30:49]} {[%emt 00:00:27]} Bh7 {[%clk 01:27:16]} {[%emt
00:00:05]} 12. Be3 {[%clk 01:30:57]} {[%emt 00:00:22]} Nfd7 {[%clk 01:27:28]}
{[%emt 00:00:19]} 13. Nd3 {[%clk 01:30:46]} {[%emt 00:00:40]} Bd6 {[%clk
01:27:54]} {[%emt 00:00:04]} 14. Bf2 {[%clk 01:30:32]} {[%emt 00:00:43]} Qc7
{[%clk 01:27:25]} {[%emt 00:00:59]} 15. Bg1 {[%emt 00:13:06]} 1/2-1/2

[Event "21th Rochefort Chess Festival - Masters"]
[Site "Rochefort, France"]
[Date "2023.02.14"]
[Round "6.5"]
[White "Nikolov, Momchil"]
[Black "Ilamparthi A R"]
[Result "1/2-1/2"]
[TimeControl "1h30 + [30'']"]
[WhiteElo "2480"]
[BlackElo "2385"]

1. d4 {[%clk 01:28:36]} {[%emt 00:02:23]} Nf6 {[%clk 01:30:53]} {[%emt
00:00:08]} 2. c4 {[%clk 01:28:57]} {[%emt 00:00:08]} g6 {[%clk 01:31:20]}
{[%emt 00:00:04]} 3. Nc3 {[%clk 01:29:20]} {[%emt 00:00:06]} Bg7 {[%clk
01:31:45]} {[%emt 00:00:05]} 4. e4 {[%clk 01:29:43]} {[%emt 00:00:07]} d6
{[%clk 01:32:12]} {[%emt 00:00:04]} 5. Nf3 {[%clk 01:30:05]} {[%emt 00:00:07]}
O-O {[%clk 01:32:36]} {[%emt 00:00:07]} 6. Be2 {[%clk 01:30:30]} {[%emt
00:00:04]} Nbd7 {[%clk 01:33:01]} {[%emt 00:00:07]} 7. O-O {[%clk 01:30:19]}
{[%emt 00:00:40]} e5 {[%clk 01:33:22]} {[%emt 00:00:10]} 8. Be3 {[%clk
01:30:40]} {[%emt 00:00:07]} Qe7 {[%clk 01:33:33]} {[%emt 00:00:20]} 9. Qc2
{[%clk 01:28:23]} {[%emt 00:02:47]} c6 {[%clk 01:33:12]} {[%emt 00:00:51]} 10.
Rad1 {[%clk 01:25:59]} {[%emt 00:02:53]} h6 {[%clk 01:32:23]} {[%emt 00:01:19]}
11. dxe5 {[%clk 01:17:34]} {[%emt 00:08:55]} dxe5 {[%clk 01:29:02]} {[%emt
00:03:52]} 12. h3 {[%clk 01:17:23]} {[%emt 00:00:40]} Nh5 {[%clk 01:28:47]}
{[%emt 00:00:45]} 13. Rfe1 {[%clk 01:17:07]} {[%emt 00:00:45]} Nf4 {[%clk
01:29:05]} {[%emt 00:00:13]} 14. Bf1 {[%clk 01:17:21]} {[%emt 00:00:14]} Ne6
{[%clk 01:29:22]} {[%emt 00:00:14]} 15. Qd2 {[%clk 01:08:23]} {[%emt 00:09:28]}
Kh7 {[%clk 01:29:31]} {[%emt 00:00:22]} 16. Qd6 {[%clk 01:08:07]} {[%emt
00:00:45]} Bf6 {[%clk 01:29:52]} {[%emt 00:00:09]} 17. Qd2 {[%clk 01:05:01]}
{[%emt 00:03:36]} Bg7 {[%clk 01:30:03]} {[%emt 00:00:20]} 18. Qd6 {[%clk
01:04:10]} {[%emt 00:01:20]} Bf6 {[%clk 01:30:26]} {[%emt 00:00:08]} 19. Qd2
{[%clk 01:04:19]} {[%emt 00:00:20]} Bg7 {[%clk 01:27:52]} {[%emt 00:03:04]}
1/2-1/2

[Event "21th Rochefort Chess Festival - Masters"]
[Site "Rochefort, France"]
[Date "2023.02.14"]
[Round "6.4"]
[White "Harsha Bharathakoti"]
[Black "Girel, Joseph"]
[Result "1-0"]
[TimeControl "1h30 + [30'']"]
[WhiteElo "2599"]
[BlackElo "2387"]

1. d4 {[%clk 01:30:46]} {[%emt 00:00:14]} Nf6 {[%clk 01:25:18]} {[%emt
00:05:41]} 2. c4 {[%clk 01:30:21]} {[%emt 00:00:55]} e6 {[%clk 01:25:24]}
{[%emt 00:00:25]} 3. Nf3 {[%clk 01:30:01]} {[%emt 00:00:50]} d5 {[%clk
01:25:33]} {[%emt 00:00:20]} 4. Nc3 {[%clk 01:28:30]} {[%emt 00:02:03]} dxc4
{[%clk 01:25:28]} {[%emt 00:00:35]} 5. e4 {[%clk 01:28:46]} {[%emt 00:00:14]}
b5 {[%clk 01:25:44]} {[%emt 00:00:14]} 6. e5 {[%clk 01:29:07]} {[%emt
00:00:09]} Nd5 {[%clk 01:26:03]} {[%emt 00:00:10]} 7. Nxb5 {[%clk 01:29:18]}
{[%emt 00:00:20]} Nb6 {[%clk 01:26:19]} {[%emt 00:00:12]} 8. Be2 {[%clk
01:29:14]} {[%emt 00:00:36]} Be7 {[%clk 01:25:36]} {[%emt 00:01:13]} 9. Be3
{[%clk 01:19:21]} {[%emt 00:10:22]} Nc6 {[%clk 01:25:45]} {[%emt 00:00:20]} 10.
a3 {[%clk 01:19:39]} {[%emt 00:00:13]} Bb7 {[%clk 01:25:31]} {[%emt 00:00:43]}
11. Qc2 {[%clk 01:20:02]} {[%emt 00:00:08]} Na5 {[%clk 01:25:29]} {[%emt
00:00:31]} 12. Rd1 {[%clk 01:18:57]} {[%emt 00:01:35]} Qd7 {[%clk 01:25:45]}
{[%emt 00:00:14]} 13. Nc3 {[%clk 01:18:59]} {[%emt 00:00:29]} f5 {[%clk
01:26:04]} {[%emt 00:00:11]} 14. exf6 {[%clk 01:17:31]} {[%emt 00:01:58]} gxf6
{[%clk 01:26:22]} {[%emt 00:00:11]} 15. O-O {[%clk 01:16:42]} {[%emt 00:01:19]}
O-O-O {[%clk 01:26:18]} {[%emt 00:00:34]} 16. Nd2 {[%clk 01:13:08]} {[%emt
00:04:05]} f5 {[%clk 01:26:00]} {[%emt 00:00:47]} 17. Bf3 {[%clk 01:12:53]}
{[%emt 00:00:45]} Rhg8 {[%clk 01:26:19]} {[%emt 00:00:10]} 18. g3 {[%clk
01:04:19]} {[%emt 00:09:05]} Bd6 {[%clk 01:26:22]} {[%emt 00:00:27]} 19. Bxb7+
{[%clk 01:04:45]} {[%emt 00:00:05]} Kxb7 {[%clk 01:26:27]} {[%emt 00:00:24]} 20.
Nf3 {[%clk 01:03:24]} {[%emt 00:01:50]} Qc6 {[%clk 01:18:08]} {[%emt 00:08:50]}
21. d5 {[%clk 00:58:39]} {[%emt 00:05:15]} exd5 {[%clk 01:08:59]} {[%emt
00:09:39]} 22. Nd4 {[%clk 00:47:49]} {[%emt 00:11:21]} Qe8 {[%clk 01:01:43]}
{[%emt 00:07:46]} 23. Nxf5 {[%clk 00:45:22]} {[%emt 00:02:57]} c6 {[%clk
00:53:07]} {[%emt 00:09:06]} 24. Ne4 {[%clk 00:28:07]} {[%emt 00:17:44]} Be7
{[%clk 00:44:03]} {[%emt 00:09:33]} 25. Bc5 {[%emt 00:01:39]} Bxc5 {[%clk
00:39:48]} {[%emt 00:04:43]} 26. Nxc5+ {[%clk 00:27:26]} {[%emt 00:00:05]} Ka8
{[%clk 00:39:33]} {[%emt 00:00:46]} 27. Rfe1 {[%clk 00:25:41]} {[%emt
00:02:15]} Qh5 {[%clk 00:38:50]} {[%emt 00:01:13]} 28. Ne7 {[%clk 00:18:43]}
{[%emt 00:07:28]} Rg4 {[%clk 00:18:47]} {[%emt 00:20:33]} 29. Qc3 {[%clk
00:17:41]} {[%emt 00:01:32]} Rf8 {[%clk 00:16:51]} {[%emt 00:02:26]} 30. Rd2
{[%clk 00:11:56]} {[%emt 00:06:14]} Nb7 {[%clk 00:10:20]} {[%emt 00:07:01]} 31.
Ne6 {[%clk 00:12:15]} {[%emt 00:00:11]} d4 {[%clk 00:10:18]} {[%emt 00:00:33]}
32. Nxc6 {[%clk 00:10:04]} {[%emt 00:02:41]} Rc8 {[%clk 00:05:52]} {[%emt
00:04:56]} 33. Ncxd4 {[%clk 00:09:23]} {[%emt 00:01:11]} Rgg8 {[%clk 00:04:29]}
{[%emt 00:01:54]} 34. Nf4 {[%clk 00:07:33]} {[%emt 00:02:20]} Qh6 {[%clk
00:04:29]} {[%emt 00:00:29]} 35. Nde6 {[%clk 00:07:37]} {[%emt 00:00:27]} Na4
{[%clk 00:03:14]} {[%emt 00:01:45]} 36. Qe5 {[%clk 00:07:09]} {[%emt 00:00:58]}
Nbc5 {[%clk 00:02:14]} {[%emt 00:01:30]} 37. Rd6 {[%clk 00:05:02]} {[%emt
00:02:37]} Qh4 {[%clk 00:01:15]} {[%emt 00:01:30]} 38. Qd5+ {[%clk 00:02:38]}
{[%emt 00:02:54]} Kb8 {[%clk 00:01:28]} {[%emt 00:00:17]} 39. Nxc5 {[%clk
00:02:13]} {[%emt 00:00:56]} Nxc5 {[%clk 00:01:49]} {[%emt 00:00:09]} 40. Rc6
{[%clk 00:02:05]} {[%emt 00:00:38]} 1-0

[Event "21th Rochefort Chess Festival - Masters"]
[Site "Rochefort, France"]
[Date "2023.02.14"]
[Round "6.3"]
[White "Sasikiran, Krishnan"]
[Black "Lucas, Arthur"]
[Result "1/2-1/2"]
[TimeControl "1h30 + [30'']"]
[WhiteElo "2619"]
[BlackElo "2415"]

1. d4 {[%clk 01:30:56]} {[%emt 00:00:02]} d5 {[%clk 01:22:57]} {[%emt
00:08:04]} 2. c4 {[%clk 01:31:09]} {[%emt 00:00:17]} dxc4 {[%clk 01:23:19]}
{[%emt 00:00:09]} 3. Nf3 {[%clk 01:30:11]} {[%emt 00:01:27]} Nf6 {[%clk
01:23:42]} {[%emt 00:00:07]} 4. e3 {[%clk 01:29:54]} {[%emt 00:00:46]} Bg4
{[%clk 01:23:30]} {[%emt 00:00:43]} 5. Bxc4 {[%clk 01:29:28]} {[%emt 00:00:56]}
e6 {[%clk 01:23:54]} {[%emt 00:00:06]} 6. Nc3 {[%clk 01:25:34]} {[%emt
00:04:24]} Nc6 {[%clk 01:23:37]} {[%emt 00:00:47]} 7. h3 {[%clk 01:14:42]}
{[%emt 00:11:21]} Bh5 {[%clk 01:24:02]} {[%emt 00:00:06]} 8. a3 {[%clk
01:10:41]} {[%emt 00:04:31]} Bd6 {[%clk 01:22:04]} {[%emt 00:02:28]} 9. g4
{[%clk 01:04:03]} {[%emt 00:07:08]} Bg6 {[%clk 01:20:41]} {[%emt 00:01:53]} 10.
Nh4 {[%clk 01:04:04]} {[%emt 00:00:28]} Be4 {[%clk 01:10:02]} {[%emt 00:11:09]}
11. Nxe4 {[%clk 00:59:55]} {[%emt 00:04:39]} Nxe4 {[%clk 01:10:16]} {[%emt
00:00:17]} 12. Nf3 {[%clk 00:59:15]} {[%emt 00:01:10]} h5 {[%clk 01:01:21]}
{[%emt 00:09:26]} 13. Bd3 {[%clk 00:45:58]} {[%emt 00:13:47]} Ng5 {[%clk
00:50:25]} {[%emt 00:11:26]} 14. gxh5 {[%clk 00:35:32]} {[%emt 00:10:55]} Rxh5
{[%clk 00:45:21]} {[%emt 00:05:34]} 15. Bd2 {[%clk 00:30:14]} {[%emt 00:05:48]}
Qf6 {[%clk 00:40:51]} {[%emt 00:05:01]} 16. Nxg5 {[%clk 00:28:48]} {[%emt
00:01:56]} Rxg5 {[%clk 00:40:25]} {[%emt 00:00:56]} 17. Qe2 {[%clk 00:25:23]}
{[%emt 00:03:54]} O-O-O {[%clk 00:38:42]} {[%emt 00:02:13]} 18. Be4 {[%clk
00:23:38]} {[%emt 00:02:14]} Rh8 {[%clk 00:27:29]} {[%emt 00:11:44]} 19. f4
{[%clk 00:12:32]} {[%emt 00:11:36]} Rg3 {[%clk 00:22:39]} {[%emt 00:05:20]} 20.
O-O-O {[%clk 00:07:45]} {[%emt 00:05:17]} g5 {[%clk 00:09:34]} {[%emt
00:13:35]} 21. fxg5 {[%clk 00:01:35]} {[%emt 00:06:39]} Qxg5 {[%clk 00:10:03]}
{[%emt 00:00:02]} 22. h4 {[%clk 00:01:20]} {[%emt 00:00:45]} 1/2-1/2



[ePGN "0.1;DGT LiveChess/2.2.5"]

[Event "21th Rochefort Chess Festival - Masters"]
[Site "Rochefort, France"]
[Date "2023.02.15"]
[Round "7.3"]
[White "Sorensen, Hampus"]
[Black "Harsha Bharathakoti"]
[Result "1/2-1/2"]
[TimeControl "1h30 + [30'']"]
[WhiteElo "2445"]
[BlackElo "2599"]

1. e4 {[%clk 01:30:36]} c5 {[%clk 01:29:01]} 2. c3 {[%clk 01:30:41]} d5 {[%clk
01:23:47]} {[%emt 00:01:08]} 3. exd5 {[%clk 01:30:52]} {[%emt 00:00:20]} Qxd5
{[%clk 01:24:11]} {[%emt 00:00:05]} 4. d4 {[%clk 01:29:48]} {[%emt 00:01:33]}
Nc6 {[%clk 01:24:13]} {[%emt 00:00:29]} 5. Nf3 {[%clk 01:28:01]} {[%emt
00:02:18]} Bf5 {[%clk 01:23:41]} {[%emt 00:01:02]} 6. Be3 {[%clk 01:15:05]}
{[%emt 00:13:26]} cxd4 {[%clk 01:14:35]} {[%emt 00:09:36]} 7. Nxd4 {[%clk
01:13:11]} {[%emt 00:02:23]} Nf6 {[%clk 01:14:22]} {[%emt 00:00:43]} 8. Nxf5
{[%clk 01:06:22]} {[%emt 00:07:20]} Qxf5 {[%clk 01:14:35]} {[%emt 00:00:17]} 9.
Qb3 {[%clk 00:59:24]} {[%emt 00:07:28]} Qd7 {[%clk 01:10:29]} {[%emt 00:04:37]}
10. Na3 {[%clk 00:59:02]} {[%emt 00:00:52]} e6 {[%clk 01:06:14]} {[%emt
00:04:43]} 11. Rd1 {[%clk 00:59:03]} {[%emt 00:00:30]} Qc8 {[%clk 01:06:40]}
{[%emt 00:00:04]} 12. Be2 {[%clk 00:54:13]} {[%emt 00:05:19]} Nd5 {[%clk
01:04:59]} {[%emt 00:02:11]} 13. Bc1 {[%clk 00:48:47]} {[%emt 00:05:57]} Bc5
{[%clk 00:57:48]} {[%emt 00:07:41]} 14. Bf3 {[%clk 00:48:45]} {[%emt 00:00:32]}
O-O {[%clk 00:57:46]} {[%emt 00:00:32]} 15. O-O {[%clk 00:47:50]} {[%emt
00:01:26]} Rd8 {[%clk 00:52:00]} {[%emt 00:06:16]} 16. Nc2 {[%clk 00:41:30]}
{[%emt 00:06:49]} Na5 {[%clk 00:34:26]} {[%emt 00:18:04]} 17. Qb5 {[%clk
00:36:22]} {[%emt 00:05:38]} Nc4 {[%clk 00:34:20]} {[%emt 00:00:36]} 18. Kh1
{[%clk 00:35:03]} {[%emt 00:01:49]} Ne5 {[%clk 00:30:02]} {[%emt 00:04:49]} 19.
Bxd5 {[%clk 00:24:15]} {[%emt 00:11:18]} 1/2-1/2